[Event "Calvi Rapid Open 2019"]
[Site "Calvi"]
[Date "2019.05.18"]
[Round "5.4"]
[White "Piscopo, Pierluigi"]
[Black "Brethes, Francois"]
[Result "0-1"]
[ECO "A05"]
[WhiteElo "2405"]
[BlackElo "2270"]
[Annotator "NA"]
[PlyCount "80"]
[EventDate "2019.05.18"]
[EventType "rapid"]
[EventCountry "FRA"]
[SourceTitle "playchess.com"]
[Source "ChessBase"]
[SourceQuality "1"]
[TimeControl "600+3"]

1. Nf3 {[%emt 0:00:00]} Nf6 {[%emt 0:00:04]} 2. g3 {[%emt 0:00:00]} d5 {[%emt 0:00:06]} 3. Bg2 {[%emt 0:00:02]} c6 {[%emt 0:00:01]} 4. d3 {[%emt 0:00:06]} Bg4 {[%emt 0:00:29]} 5. h3 {[%emt 0:00:24]} Bh5 {[%emt 0:00:14]} 6. Bf4 {[%emt 0:00:37]} Nbd7 {[%emt 0:00:05]} 7. Nbd2 {[%emt 0:00:15]} e6 {[%emt 0:00:24]} 8. O-O {[%emt 0:00:15]} Be7 {[%emt 0:00:02]} 9. c4 {[%emt 0:00:09]} O-O {[%emt 0:00:04]} 10. Qb3 {[%emt 0:00:05]} Qb6 {[%emt 0:00:25]} 11. g4 {[%emt 0:00:18]} Bg6 {[%emt 0:00:03]} 12. Rfc1 {[%emt 0:00:43]} Rfe8 {[%emt 0:00:03]} 13. a4 {[%emt 0:01:07]} dxc4 {[%emt 0:00:41]} 14. Qxc4 {[%emt 0:00:46]} a5 {[%emt 0:00:17]} 15. Qc2 {[%emt 0:00:46]} Nd5 {[%emt 0:01:22]} 16. Nc4 {[%emt 0:00:05]} Qa7 {[%emt 0:00:02]} 17. Bg3 {[%emt 0:00:15]} Bf6 {[%emt 0:00:28]} 18. Qb3 {[%emt 0:01:08]} Nc5 {[%emt 0:00:06]} 19. Qd1 {[%emt 0:00:23]} Rad8 {[%emt 0:01:13]} 20. Nfe5 {[%emt 0:00:18]} Nb4 {[%emt 0:00:21]} 21. Ra3 {[%emt 0:00:54]} Rd4 {[%emt 0:00:02]} 22. Nxg6 {[%emt 0:01:01]} hxg6 {[%emt 0:00:01]} 23. Nd6 {[%emt 0:00:00]} Rd8 {[%emt 0:00:08]} 24. Rxc5 {[%emt 0:00:29]} Qxc5 {[%emt 0:00:42]} 25. Nxb7 {[%emt 0:00:01]} Qc2 {[%emt 0:00:01]} 26. Ra1 {[%emt 0:00:11]} Qxd1+ {[%emt 0:01:29]} 27. Rxd1 {[%emt 0:00:01]} Ra8 {[%emt 0:00:02]} 28. Rc1 {[%emt 0:00:09]} Nd5 {[%emt 0:00:11]} 29. Rxc6 {[%emt 0:00:18]} Rxa4 {[%emt 0:00:03]} 30. Rd6 {[%emt 0:00:17]} Rb4 {[%emt 0:00:11]} 31. Rd7 {[%emt 0:00:06]} Rxb2 {[%emt 0:00:15]} 32. e4 {[%emt 0:00:11]} Nb6 {[%emt 0:00:26]} 33. Rc7 {[%emt 0:00:02]} Bd8 {[%emt 0:00:02]} 34. Nxd8 {[%emt 0:00:02]} Rxd8 {[%emt 0:00:02]} 35. Rb7 {[%emt 0:00:02]} Rxd3 {[%emt 0:00:24]} 36. Rb8+ {[%emt 0:00:09]} Kh7 {[%emt 0:00:01]} 37. e5 {[%emt 0:00:01]} a4 {[%emt 0:00:04]} 38. Rb7 {[%emt 0:00:04]} a3 {[%emt 0:00:05]} 39. Ra7 {[%emt 0:00:02]} a2 {[%emt 0:00:02]} 40. Kh2 {[%emt 0:00:04]} Rd1 {[%emt 0:00:02]} 0-1

[Event "Calvi Rapid Open 2019"]
[Site "Calvi"]
[Date "2019.05.18"]
[Round "6.2"]
[White "Massoni, Michael"]
[Black "Petrosyan, Armen"]
[Result "0-1"]
[ECO "B10"]
[WhiteElo "2339"]
[BlackElo "2409"]
[Annotator "NA"]
[PlyCount "106"]
[EventDate "2019.05.18"]
[EventType "rapid"]
[EventCountry "FRA"]
[SourceTitle "playchess.com"]
[Source "ChessBase"]
[SourceQuality "1"]
[TimeControl "600+3"]

1. e4 {[%emt 0:00:00]} c6 {[%emt 0:00:00]} 2. Nc3 {[%emt 0:00:04]} d5 {[%emt 0:00:02]} 3. Nf3 {[%emt 0:00:01]} Nf6 {[%emt 0:00:08]} 4. e5 {[%emt 0:00:25]} Ne4 {[%emt 0:00:05]} 5. Ne2 {[%emt 0:00:09]} Qb6 {[%emt 0:00:14]} 6. d4 {[%emt 0:00:32]} f6 {[%emt 0:04:17]} 7. c3 {[%emt 0:02:23]} fxe5 {[%emt 0:02:08]} 8. Nxe5 {[%emt 0:00:25]} Nd7 {[%emt 0:00:02]} 9. Nd3 {[%emt 0:00:29]} g6 {[%emt 0:00:29]} 10. g3 {[%emt 0:01:07]} Bg7 {[%emt 0:00:13]} 11. Bg2 {[%emt 0:00:02]} e5 {[%emt 0:01:11]} 12. Be3 {[%emt 0:00:23]} exd4 {[%emt 0:00:10]} 13. Nxd4 {[%emt 0:00:07]} c5 {[%emt 0:00:48]} 14. Nb3 {[%emt 0:00:06]} Qc6 {[%emt 0:00:05]} 15. O-O {[%emt 0:00:44]} b6 {[%emt 0:00:03]} 16. Nf4 {[%emt 0:00:48]} Bb7 {[%emt 0:00:03]} 17. Nd2 {[%emt 0:00:47]} Ndf6 {[%emt 0:00:10]} 18. Nxe4 {[%emt 0:01:16]} dxe4 {[%emt 0:00:16]} 19. Bh3 {[%emt 0:00:31]} Bc8 {[%emt 0:00:10]} 20. Bg2 {[%emt 0:00:06]} Bg4 {[%emt 0:00:10]} 21. Qb3 {[%emt 0:00:09]} c4 {[%emt 0:00:02]} 22. Qc2 {[%emt 0:00:02]} O-O {[%emt 0:00:04]} 23. Bd4 {[%emt 0:00:05]} Bf5 {[%emt 0:00:04]} 24. Qd2 {[%emt 0:00:12]} Rad8 {[%emt 0:00:02]} 25. Qe2 {[%emt 0:00:08]} Bg4 {[%emt 0:00:03]} 26. Qc2 {[%emt 0:00:02]} Bf5 {[%emt 0:00:02]} 27. Qe2 {[%emt 0:00:02]} Bg4 {[%emt 0:00:02]} 28. Qc2 {[%emt 0:00:02]} Bf5 {[%emt 0:00:03]} 29. Rfe1 {[%emt 0:00:01]} Rfe8 {[%emt 0:00:10]} 30. Qe2 {[%emt 0:00:07]} Bg4 {[%emt 0:00:02]} 31. Qc2 {[%emt 0:00:02]} Bf3 {[%emt 0:00:03]} 32. b3 {[%emt 0:00:03]} Bxg2 {[%emt 0:00:03]} 33. Nxg2 {[%emt 0:00:01]} Ng4 {[%emt 0:00:06]} 34. Bxg7 {[%emt 0:00:04]} Kxg7 {[%emt 0:00:01]} 35. Qe2 {[%emt 0:00:06]} Ne5 {[%emt 0:00:02]} 36. Nf4 {[%emt 0:00:12]} Nf3+ {[%emt 0:00:02]} 37. Kg2 {[%emt 0:00:01]} Nxe1+ {[%emt 0:00:03]} 38. Rxe1 {[%emt 0:00:01]} e3+ {[%emt 0:00:01]} 39. Qf3 {[%emt 0:00:01]} Qxf3+ {[%emt 0:00:04]} 40. Kxf3 {[%emt 0:00:01]} exf2 {[%emt 0:00:01]} 41. Rf1 {[%emt 0:00:01]} Rd2 {[%emt 0:00:03]} 42. bxc4 {[%emt 0:00:03]} Rxa2 {[%emt 0:00:01]} 43. h4 {[%emt 0:00:02]} Re1 {[%emt 0:00:01]} 44. Rxf2 {[%emt 0:00:01]} Rxf2+ {[%emt 0:00:03]} 45. Kxf2 {[%emt 0:00:01]} Rc1 {[%emt 0:00:02]} 46. Nd5 {[%emt 0:00:01]} Kf7 {[%emt 0:00:04]} 47. Ke3 {[%emt 0:00:01]} Ke6 {[%emt 0:00:02]} 48. Kd2 {[%emt 0:00:01]} Rg1 {[%emt 0:00:02]} 49. Nf4+ {[%emt 0:00:02]} Kd6 {[%emt 0:00:02]} 50. Ne2 {[%emt 0:00:02]} Rh1 {[%emt 0:00:03]} 51. Kd3 {[%emt 0:00:00]} Kc5 {[%emt 0:00:03]} 52. Nf4 {[%emt 0:00:02]} Rd1+ {[%emt 0:00:03]} 53. Kc2 {[%emt 0:00:01]} Rg1 {[%emt 0:00:02]} 0-1

[Event "Calvi Rapid Open 2019"]
[Site "Calvi"]
[Date "2019.05.18"]
[Round "6.3"]
[White "Brethes, Francois"]
[Black "Maurizzi, Marc Andria"]
[Result "0-1"]
[ECO "A48"]
[WhiteElo "2270"]
[BlackElo "2329"]
[Annotator "NA"]
[PlyCount "50"]
[EventDate "2019.05.18"]
[EventType "rapid"]
[EventCountry "FRA"]
[SourceTitle "playchess.com"]
[Source "ChessBase"]
[SourceQuality "1"]
[TimeControl "600+3"]

1. d4 {[%emt 0:00:00]} Nf6 {[%emt 0:00:00]} 2. Nf3 {[%emt 0:00:02]} g6 {[%emt 0:00:00]} 3. c3 {[%emt 0:00:01]} Bg7 {[%emt 0:00:02]} 4. Bg5 {[%emt 0:00:02]} O-O {[%emt 0:00:07]} 5. Nbd2 {[%emt 0:00:01]} d5 {[%emt 0:00:10]} 6. e3 {[%emt 0:00:04]} Ne4 {[%emt 0:01:27]} 7. Bh4 {[%emt 0:01:36]} h6 {[%emt 0:01:59]} 8. c4 {[%emt 0:00:21]} g5 {[%emt 0:00:48]} 9. Bg3 {[%emt 0:00:02]} Nxg3 {[%emt 0:00:05]} 10. hxg3 {[%emt 0:00:02]} c5 {[%emt 0:00:12]} 11. Qc2 {[%emt 0:00:29]} cxd4 {[%emt 0:00:14]} 12. Nxd4 {[%emt 0:01:20]} Nc6 {[%emt 0:00:19]} 13. Nxc6 {[%emt 0:00:14]} bxc6 {[%emt 0:00:02]} 14. Nf3 {[%emt 0:00:02]} Rb8 {[%emt 0:00:39]} 15. Bd3 {[%emt 0:03:30]} Rxb2 {[%emt 0:00:34]} 16. Qa4 {[%emt 0:00:01]} dxc4 {[%emt 0:00:44]} 17. Bxc4 {[%emt 0:00:19]} Bc3+ {[%emt 0:00:54]} 18. Kf1 {[%emt 0:00:09]} Rb4 {[%emt 0:00:08]} 19. Qxc6 {[%emt 0:00:02]} Bxa1 {[%emt 0:00:29]} 20. Qxh6 {[%emt 0:00:25]} Rb1+ {[%emt 0:00:29]} 21. Ne1 {[%emt 0:00:23]} Rxe1+ {[%emt 0:00:05]} 22. Kxe1 {[%emt 0:00:01]} Bc3+ {[%emt 0:00:01]} 23. Ke2 {[%emt 0:00:01]} Bg4+ {[%emt 0:00:02]} 24. f3 {[%emt 0:00:02]} Qd2+ {[%emt 0:00:01]} 25. Kf1 {[%emt 0:00:00]} Qe1# {[%emt 0:00:01]} 0-1

[Event "Calvi Rapid Open 2019"]
[Site "Calvi"]
[Date "2019.05.18"]
[Round "6.4"]
[White "Tomasi, Elise"]
[Black "Bouslimi, Nabil"]
[Result "0-1"]
[ECO "C01"]
[WhiteElo "1867"]
[BlackElo "2083"]
[Annotator "NA"]
[PlyCount "85"]
[EventDate "2019.05.18"]
[EventType "rapid"]
[EventCountry "FRA"]
[SourceTitle "playchess.com"]
[Source "ChessBase"]
[SourceQuality "1"]
[TimeControl "600+3"]

1. e4 {[%emt 0:00:01]} e6 {[%emt 0:00:00]} 2. d4 d5 3. exd5 {[%emt 0:00:02]} exd5 {[%emt 0:00:00]} 4. c4 {[%emt 0:00:01]} Nf6 {[%emt 0:00:00]} 5. Bd3 {[%emt 0:00:03]} Be7 {[%emt 0:00:00]} 6. Ne2 {[%emt 0:00:10]} O-O {[%emt 0:00:04]} 7. O-O {[%emt 0:00:02]} Nc6 {[%emt 0:00:03]} 8. Nbc3 {[%emt 0:00:24]} Bg4 {[%emt 0:00:05]} 9. Be3 {[%emt 0:00:49]} Qd7 {[%emt 0:00:32]} 10. Qd2 {[%emt 0:00:55]} Nb4 {[%emt 0:00:14]} 11. Nxd5 {[%emt 0:01:03]} Nfxd5 {[%emt 0:00:56]} 12. cxd5 {[%emt 0:00:05]} Nxd3 {[%emt 0:00:53]} 13. Qxd3 {[%emt 0:00:02]} Bxe2 {[%emt 0:00:03]} 14. Qxe2 {[%emt 0:00:01]} Qxd5 {[%emt 0:00:04]} 15. Rac1 {[%emt 0:00:28]} c6 {[%emt 0:00:02]} 16. b3 {[%emt 0:00:22]} Bf6 {[%emt 0:00:01]} 17. Rfd1 {[%emt 0:00:02]} Rfe8 {[%emt 0:00:03]} 18. Qd3 {[%emt 0:03:21]} Rad8 {[%emt 0:00:03]} 19. Rc5 {[%emt 0:00:45]} Qd6 {[%emt 0:00:26]} 20. Qc4 {[%emt 0:02:10]} Bxd4 {[%emt 0:01:04]} 21. Rf5 {[%emt 0:00:06]} Qe6 {[%emt 0:00:42]} 22. Qxe6 {[%emt 0:00:08]} fxe6 {[%emt 0:00:11]} 23. Rf3 {[%emt 0:00:04]} Bxe3 {[%emt 0:00:13]} 24. Rxd8 Rxd8 {[%emt 0:00:00]} 25. fxe3 {[%emt 0:00:04]} Rd1+ {[%emt 0:00:01]} 26. Kf2 {[%emt 0:00:00]} Rd2+ {[%emt 0:00:01]} 27. Kg3 {[%emt 0:00:01]} Rxa2 {[%emt 0:00:00]} 28. b4 {[%emt 0:00:09]} Ra3 {[%emt 0:00:02]} 29. Kf2 {[%emt 0:00:04]} Ra4 {[%emt 0:00:10]} 30. Rf4 {[%emt 0:00:03]} b6 {[%emt 0:00:18]} 31. Re4 {[%emt 0:00:02]} Kf7 {[%emt 0:00:01]} 32. Rd4 {[%emt 0:00:01]} Ke7 {[%emt 0:00:04]} 33. Rh4 {[%emt 0:00:04]} h6 {[%emt 0:00:04]} 34. Rg4 {[%emt 0:00:01]} g5 {[%emt 0:00:27]} 35. h4 {[%emt 0:00:01]} Kf6 {[%emt 0:00:00]} 36. hxg5+ hxg5 {[%emt 0:00:01]} 37. Rd4 {[%emt 0:00:11]} a5 {[%emt 0:00:07]} 38. Rd6 {[%emt 0:00:01]} Rxb4 {[%emt 0:00:02]} 39. Rxc6 {[%emt 0:00:01]} a4 {[%emt 0:00:09]} 40. Rc8 {[%emt 0:00:02]} a3 {[%emt 0:00:02]} 41. Ra8 {[%emt 0:00:01]} Rb2+ {[%emt 0:00:01]} 42. Kf3 {[%emt 0:00:00]} a2 43. Ke4 {Ke5+} 0-1

[Event "Calvi Rapid Open 2019"]
[Site "Calvi"]
[Date "2019.05.19"]
[Round "7.4"]
[White "Bouslimi, Nabil"]
[Black "Utrera, Ludovic"]
[Result "1-0"]
[ECO "A64"]
[WhiteElo "2083"]
[BlackElo "1995"]
[Annotator "NA RC"]
[PlyCount "98"]
[EventDate "2019.05.18"]
[EventType "rapid"]
[EventCountry "FRA"]
[SourceTitle "playchess.com"]
[Source "ChessBase"]
[SourceQuality "1"]
[TimeControl "600+3"]

1. d4 {[%emt 0:00:02]} Nf6 {[%emt 0:00:00]} 2. c4 {[%emt 0:00:02]} c5 {[%emt 0:00:00]} 3. d5 {[%emt 0:00:25]} e6 {[%emt 0:00:01]} 4. Nc3 {[%emt 0:00:02]} exd5 {[%emt 0:00:01]} 5. cxd5 {[%emt 0:00:01]} d6 {[%emt 0:00:02]} 6. g3 {[%emt 0:00:10]} g6 {[%emt 0:00:03]} 7. Bg2 {[%emt 0:00:02]} Bg7 {[%emt 0:00:01]} 8. Nf3 {[%emt 0:00:09]} O-O {[%emt 0:00:03]} 9. O-O {[%emt 0:00:03]} a6 {[%emt 0:00:02]} 10. a4 {[%emt 0:00:01]} Re8 {[%emt 0:00:15]} 11. Nd2 {[%emt 0:00:25]} Nbd7 {[%emt 0:00:59]} 12. e4 {[%emt 0:00:18]} Rb8 {[%emt 0:00:12]} 13. a5 {[%emt 0:00:14]} b5 {[%emt 0:00:04]} 14. axb6 $1 {[%emt 0:00:27]} Nxb6 {[%emt 0:00:07]} 15. Re1 {[%emt 0:01:08]} Ng4 {[%emt 0:00:08]} 16. h3 {[%emt 0:01:01]} Ne5 {[%emt 0:00:05]} 17. Nb3 {[%emt 0:00:40]} c4 {[%emt 0:02:47]} 18. Nd4 {[%emt 0:00:32]} Nd3 {[%emt 0:02:07]} 19. Nc6 {[%emt 0:00:15]} Qf6 {[%emt 0:00:01]} 20. Re2 {[%emt 0:01:14]} Nxc1 {[%emt 0:00:10]} 21. Qxc1 {[%emt 0:00:10]} Ra8 {[%emt 0:00:02]} 22. f4 {[%emt 0:00:26]} Bd7 {[%emt 0:01:05]} 23. e5 {[%emt 0:01:13]} dxe5 {[%emt 0:00:02]} 24. Ne4 {[%emt 0:00:37]} Qf5 {[%emt 0:00:07]} 25. Nd6 {[%emt 0:00:23]} Qh5 {[%emt 0:00:24]} 26. g4 {[%emt 0:00:20]} Qh4 {[%emt 0:00:24]} 27. Nxe8 {[%emt 0:00:18]} Rxe8 {[%emt 0:00:01]} 28. fxe5 {[%emt 0:00:29]} h5 {[%emt 0:00:50]} 29. Qe1 {[%emt 0:00:09]} Qg5 {[%emt 0:00:01]} 30. Qd2 {[%emt 0:00:07]} Qh4 {[%emt 0:00:03]} 31. Qe1 {[%emt 0:00:06]} Qg5 {[%emt 0:00:01]} 32. Qf2 {[%emt 0:00:01]} hxg4 33. h4 Qh5 {[%emt 0:00:21]} 34. Rf1 {[%emt 0:00:02]} Bf5 {[%emt 0:00:07]} 35. d6 {[%emt 0:00:05]} Nd7 {[%emt 0:00:24]} 36. Ne7+ {[%emt 0:00:01]} Kh7 {[%emt 0:00:15]} 37. Nxf5 {[%emt 0:00:03]} gxf5 {[%emt 0:00:01]} 38. Qxf5+ {[%emt 0:00:01]} Qxf5 {[%emt 0:00:01]} 39. Rxf5 {[%emt 0:00:01]} Bxe5 {[%emt 0:00:07]} 40. Rxf7+ {[%emt 0:00:10]} Kg6 {[%emt 0:00:02]} 41. Rxd7 {[%emt 0:00:01]} Bd4+ {[%emt 0:00:06]} 42. Kf1 {[%emt 0:00:01]} Rb8 {[%emt 0:00:04]} 43. Rde7 {[%emt 0:00:07]} Bxb2 {[%emt 0:00:04]} 44. Rb7 {[%emt 0:00:03]} Rf8+ {[%emt 0:00:05]} 45. Rf2 {[%emt 0:00:01]} Rxf2+ {[%emt 0:00:06]} 46. Kxf2 {[%emt 0:00:01]} Bd4+ {[%emt 0:00:00]} 47. Ke2 {[%emt 0:00:01]} c3 {[%emt 0:00:01]} 48. d7 {[%emt 0:00:01]} c2 {[%emt 0:00:01]} 49. Be4+ {[%emt 0:00:01]} Kf6 {[%emt 0:00:02]} 1-0

[Event "Calvi Rapid Open 2019"]
[Site "Calvi"]
[Date "2019.05.19"]
[Round "8.4"]
[White "Marty, Brice"]
[Black "Pieri, Pierre-Louis"]
[Result "0-1"]
[ECO "B47"]
[WhiteElo "2023"]
[BlackElo "2034"]
[Annotator "NA RC"]
[PlyCount "63"]
[EventDate "2019.05.18"]
[EventType "rapid"]
[EventCountry "FRA"]
[SourceTitle "playchess.com"]
[Source "ChessBase"]
[SourceQuality "1"]
[TimeControl "600+3"]

1. e4 {[%emt 0:00:00]} c5 {[%emt 0:00:02]} 2. Nf3 {[%emt 0:00:10]} e6 {[%emt 0:00:01]} 3. d4 {[%emt 0:00:01]} cxd4 {[%emt 0:00:01]} 4. Nxd4 {[%emt 0:00:01]} Nc6 {[%emt 0:00:01]} 5. Nc3 {[%emt 0:00:03]} Qc7 {[%emt 0:00:01]} 6. g3 {[%emt 0:00:05]} a6 {[%emt 0:00:10]} 7. Bg2 {[%emt 0:00:03]} h5 {[%emt 0:00:00]} 8. h3 {[%emt 0:00:22]} h4 {[%emt 0:00:32]} 9. g4 {[%emt 0:00:01]} b5 {[%emt 0:00:26]} 10. O-O {[%emt 0:00:24]} Bb7 {[%emt 0:00:08]} 11. Be3 {[%emt 0:00:14]} Ne5 {[%emt 0:01:09]} 12. Nde2 {[%emt 0:01:57]} Nf6 {[%emt 0:01:02]} 13. f4 $17 {[%emt 0:00:37]} (13. g5 $15 Nh5 14. Bd4) 13... Nc4 {[%emt 0:02:26]} 14. Bc1 {[%emt 0:00:33]} b4 {[%emt 0:00:10]} 15. Na4 {[%emt 0:03:46]} Bxe4 {[%emt 0:00:57]} 16. b3 {[%emt 0:00:21]} Bxg2 {[%emt 0:00:08]} 17. Kxg2 {[%emt 0:00:01]} Nb6 {[%emt 0:00:18]} 18. Nxb6 {[%emt 0:00:12]} Qxb6 {[%emt 0:00:01]} 19. Qd3 {[%emt 0:00:12]} Rc8 {[%emt 0:00:26]} 20. Be3 {[%emt 0:01:19]} Qc6+ {[%emt 0:00:03]} 21. Rf3 {[%emt 0:00:17]} Nd5 {[%emt 0:00:18]} 22. Kf2 {[%emt 0:00:16]} Qxc2 {[%emt 0:01:09]} 23. Qxa6 {[%emt 0:00:04]} Nxe3 {[%emt 0:00:02]} 24. Rxe3 {[%emt 0:00:07]} Qc6 {[%emt 0:00:36]} 25. Qxc6 {[%emt 0:00:02]} Rxc6 {[%emt 0:00:01]} 26. Rd1 {[%emt 0:00:01]} Bc5 {[%emt 0:00:03]} 27. Nd4 {[%emt 0:00:03]} Rd6 {[%emt 0:00:13]} 28. Red3 {[%emt 0:00:01]} g5 {[%emt 0:00:13]} 29. Kf3 {[%emt 0:00:01]} gxf4 {[%emt 0:00:06]} 30. Kxf4 {[%emt 0:00:03]} Ke7 {[%emt 0:00:23]} 31. Nf3 {[%emt 0:00:01]} Ra8 {[%emt 0:00:12]} 32. R3d2 0-1

[Event "Calvi Rapid Open 2019"]
[Site "Calvi"]
[Date "2019.05.19"]
[Round "9.3"]
[White "Cristofari, Antoine"]
[Black "Petrosyan, Armen"]
[Result "0-1"]
[ECO "B13"]
[WhiteElo "1968"]
[BlackElo "2409"]
[Annotator "RC"]
[PlyCount "80"]
[EventDate "2019.05.18"]
[EventType "rapid"]
[EventCountry "FRA"]
[SourceTitle "playchess.com"]
[Source "ChessBase"]
[SourceQuality "1"]
[TimeControl "600+3"]

1. e4 {[%emt 0:00:00]} c6 {[%emt 0:00:00]} 2. d4 {[%emt 0:00:01]} d5 {[%emt 0:00:00]} 3. exd5 {[%emt 0:00:01]} cxd5 {[%emt 0:00:01]} 4. Bd3 {[%emt 0:00:02]} Nc6 {[%emt 0:00:07]} 5. c3 {[%emt 0:00:03]} Qc7 {[%emt 0:00:16]} 6. Na3 {[%emt 0:00:41]} a6 {[%emt 0:00:23]} 7. Qa4 {[%emt 0:00:12]} Bd7 {[%emt 0:02:39]} 8. Qd1 {[%emt 0:02:26]} e5 {[%emt 0:02:16]} 9. Nc2 {[%emt 0:00:31]} e4 {[%emt 0:00:10]} 10. Be2 {[%emt 0:00:03]} Bd6 {[%emt 0:00:27]} 11. Bg5 {[%emt 0:00:16]} h6 {[%emt 0:00:22]} 12. Bd2 {[%emt 0:00:24]} Nf6 {[%emt 0:00:31]} 13. Ne3 {[%emt 0:00:18]} O-O {[%emt 0:00:06]} 14. h3 {[%emt 0:01:28]} Be6 {[%emt 0:00:13]} 15. Bg4 {[%emt 0:00:07]} Ne7 {[%emt 0:00:28]} 16. Ne2 {[%emt 0:00:19]} Nh7 {[%emt 0:00:27]} 17. Bxe6 {[%emt 0:00:24]} fxe6 {[%emt 0:00:02]} 18. Qb3 {[%emt 0:00:40]} b5 {[%emt 0:00:16]} 19. Rf1 {[%emt 0:00:09]} Ng6 {[%emt 0:00:39]} 20. O-O-O {[%emt 0:00:05]} Nf6 {[%emt 0:00:06]} 21. Kb1 {[%emt 0:00:03]} Nf4 {[%emt 0:00:09]} 22. Nxf4 {[%emt 0:00:04]} Bxf4 {[%emt 0:00:00]} 23. Bc1 {[%emt 0:01:47]} Rf7 {[%emt 0:00:08]} 24. Rde1 {[%emt 0:00:07]} Raf8 {[%emt 0:00:03]} 25. Qc2 {[%emt 0:00:05]} Nd7 {[%emt 0:00:11]} 26. g3 {[%emt 0:00:12]} Bg5 {[%emt 0:00:21]} 27. h4 {[%emt 0:00:05]} Be7 {[%emt 0:00:02]} 28. Ng4 {[%emt 0:00:09]} Rf3 {[%emt 0:00:07]} 29. Be3 {[%emt 0:00:06]} Bd6 {[%emt 0:00:12]} 30. Nh2 {[%emt 0:00:05]} R3f7 {[%emt 0:00:07]} 31. Rg1 {[%emt 0:00:01]} Nb6 {[%emt 0:00:03]} 32. Re2 {[%emt 0:00:16]} Nc4 {[%emt 0:00:01]} 33. Bc1 {[%emt 0:00:04]} a5 {[%emt 0:00:12]} 34. Nf1 {[%emt 0:00:04]} b4 {[%emt 0:00:02]} 35. Nd2 {[%emt 0:00:06]} Rxf2 {[%emt 0:00:14]} 36. Nxc4 {[%emt 0:00:08]} Rxe2 {[%emt 0:00:01]} 37. Qxe2 {[%emt 0:00:07]} Qxc4 {[%emt 0:00:01]} 38. Qe3 {[%emt 0:00:11]} Rf3 {[%emt 0:00:10]} 39. Qe1 Qd3+ 40. Ka1 Bxg3 0-1

[Event "Calvi Rapid Open 2019"]
[Site "Calvi"]
[Date "2019.05.19"]
[Round "9.4"]
[White "Tomasi, Elise"]
[Black "Massoni, Michael"]
[Result "0-1"]
[ECO "A49"]
[WhiteElo "1898"]
[BlackElo "2344"]
[Annotator "NA RC"]
[PlyCount "142"]
[EventDate "2019.05.18"]
[EventType "rapid"]
[EventCountry "FRA"]
[SourceTitle "playchess.com"]
[Source "ChessBase"]
[SourceQuality "1"]
[TimeControl "600+3"]

1. d4 {[%emt 0:00:02]} Nf6 {[%emt 0:00:00]} 2. Nf3 {[%emt 0:00:02]} g6 {[%emt 0:00:06]} 3. g3 {[%emt 0:00:06]} Bg7 {[%emt 0:00:03]} 4. Bg2 {[%emt 0:00:03]} O-O {[%emt 0:00:13]} 5. O-O {[%emt 0:00:03]} d6 {[%emt 0:00:02]} 6. a4 {[%emt 0:00:04]} Nbd7 {[%emt 0:00:26]} 7. b3 {[%emt 0:00:29] A49: 1 d4 Nf6 2 Nf3 g6 3 g3: Anti-King's Indian systems} (7. a5 a6 8. Re1 e5 9. e4 exd4 10. Nxd4 Re8 11. Nc3 Nc5 12. h3 Bd7 13. Bf4 Qc8 14. Kh2 Nh5 15. Be3 Nf6 {1-0 (94) Piorun,K (2631)-Bobras,P (2499) Poland 2018}) 7... c6 {[%emt 0:00:15]} 8. a5 {[%emt 0:00:18]} Qc7 {[%emt 0:00:07]} 9. Bb2 {[%emt 0:00:13]} Re8 {[%emt 0:00:31]} 10. Nc3 $146 {[%emt 0:00:53]} ({Predecessor:} 10. Nbd2 e5 11. dxe5 dxe5 12. e4 Rd8 13. Qe2 Ne8 14. Nc4 Rb8 15. Rfd1 b5 16. axb6 axb6 17. Nfxe5 {1-0 (24) Bockowski,R (2275)-Klatt,J Ueckermuende 1998}) 10... e5 {[%emt 0:00:20]} 11. e4 {[%emt 0:01:02]} Nf8 {[%emt 0:00:56]} 12. Re1 {[%emt 0:00:50]} Bg4 {[%emt 0:00:14]} 13. dxe5 {[%emt 0:01:37]} dxe5 {[%emt 0:00:03]} 14. Qc1 {[%emt 0:01:35]} Rad8 {[%emt 0:00:27]} 15. b4 {[%emt 0:00:30]} Ne6 {[%emt 0:00:50]} 16. h3 {[%emt 0:01:07]} Bxf3 {[%emt 0:00:02]} 17. Bxf3 {[%emt 0:00:02]} Nd4 {[%emt 0:00:17]} 18. Bg2 {[%emt 0:00:02]} Qe7 {[%emt 0:00:08]} 19. Na2 {[%emt 0:00:08]} h5 {[%emt 0:00:17]} 20. Bxd4 {[%emt 0:00:16]} Rxd4 {[%emt 0:00:10]} 21. c3 {[%emt 0:00:08]} Rd3 {[%emt 0:00:22]} 22. Qc2 {[%emt 0:00:10]} Rdd8 {[%emt 0:00:07]} 23. Rad1 {[%emt 0:00:04]} h4 {[%emt 0:00:04]} 24. Nc1 {[%emt 0:00:11]} hxg3 {[%emt 0:00:02]} 25. fxg3 {[%emt 0:00:01]} Nh5 {[%emt 0:00:31]} 26. Qf2 {[%emt 0:00:05]} Qg5 {[%emt 0:00:13]} 27. Kh2 {[%emt 0:00:02]} Bh6 {[%emt 0:00:54]} 28. Nd3 {[%emt 0:00:39]} Qe7 $14 {[%emt 0:00:19]} (28... Re6 $11) 29. Qxa7 {[%emt 0:00:04]} (29. Bf3 $14) 29... Rd6 {[%emt 0:00:25]} 30. Qf2 {[%emt 0:00:09]} Red8 {[%emt 0:00:07]} 31. Nb2 {[%emt 0:00:01]} Bd2 {[%emt 0:00:59]} 32. Rxd2 {[%emt 0:00:16]} Rxd2 33. Re2 Rxe2 {[%emt 0:00:24]} 34. Qxe2 {[%emt 0:00:02]} Nxg3 {[%emt 0:00:38]} 35. Kxg3 {[%emt 0:00:05]} Qg5+ {[%emt 0:00:01]} 36. Qg4 {[%emt 0:00:04]} Qd2 {[%emt 0:00:04]} 37. Na4 {[%emt 0:00:06]} Qc2 {[%emt 0:00:16]} 38. Nb6 {[%emt 0:00:03]} Qxc3+ {[%emt 0:00:07]} 39. Kh2 {[%emt 0:00:02]} Qxb4 {[%emt 0:00:04]} 40. Qg5 {[%emt 0:00:01]} Qd4 {[%emt 0:00:12]} 41. Nc4 {[%emt 0:00:04]} Ra8 {[%emt 0:00:17]} 42. Nd2 {[%emt 0:00:12]} c5 {[%emt 0:00:06]} 43. Nf3 {[%emt 0:00:02]} Qd6 {[%emt 0:00:01]} 44. Qg3 {[%emt 0:00:07]} Re8 {[%emt 0:00:13]} 45. h4 {[%emt 0:00:03]} Kg7 {[%emt 0:00:02]} 46. h5 {[%emt 0:00:02]} Rh8 {[%emt 0:00:01]} 47. Kg1 {[%emt 0:00:03]} Rxh5 {[%emt 0:00:01]} 48. Qe1 {[%emt 0:00:10]} Rh8 {[%emt 0:00:02]} 49. Qc3 {[%emt 0:00:01]} Re8 {[%emt 0:00:01]} 50. Nd2 {[%emt 0:00:02]} Qd4+ {[%emt 0:00:01]} 51. Qxd4 {[%emt 0:00:02]} cxd4 {[%emt 0:00:02]} 52. Bf1 {[%emt 0:00:02]} Ra8 {[%emt 0:00:04]} 53. Nc4 {[%emt 0:00:01]} f6 {[%emt 0:00:02]} 54. Bd3 {[%emt 0:00:02]} Kf8 {[%emt 0:00:06]} 55. Kf2 {[%emt 0:00:02]} Ke7 {[%emt 0:00:01]} 56. Ke2 {[%emt 0:00:03]} Rh8 {[%emt 0:00:01]} 57. Nd2 {[%emt 0:00:06]} Kd6 {[%emt 0:00:03]} 58. Nc4+ {[%emt 0:00:02]} Kc5 {[%emt 0:00:02]} 59. Nb6 {[%emt 0:00:02]} Rh2+ {[%emt 0:00:03]} 60. Kd1 {[%emt 0:00:02]} Rh3 {[%emt 0:00:20]} 61. Kd2 {[%emt 0:00:04]} Rh2+ {[%emt 0:00:03]} 62. Kd1 {[%emt 0:00:01]} Ra2 {[%emt 0:00:04]} 63. Nd7+ {[%emt 0:00:02]} Kb4 {[%emt 0:00:01]} 64. Nxf6 {[%emt 0:00:04]} Kc3 {[%emt 0:00:06]} 65. Bb5 {[%emt 0:00:03]} Rxa5 {[%emt 0:00:04]} 66. Nd5+ {[%emt 0:00:01]} Kb3 {[%emt 0:00:01]} 67. Bd3 {[%emt 0:00:02]} Ra8 {[%emt 0:00:03]} 68. Ne7 {[%emt 0:00:03]} Kc3 {[%emt 0:00:02]} 69. Bb5 d3 {[%emt 0:00:02]} 70. Nd5+ {[%emt 0:00:04]} Kd4 {[%emt 0:00:01]} 71. Nb4 {[%emt 0:00:03]} Kc5 {[%emt 0:00:05]} 0-1